[Event "*** Titled Tuesday 3|2 Blitz"]
[Site "Chess.com"]
[Date "2016.06.07"]
[Round "3"]
[White "Bigfish1995"]
[Black "mwpchess"]
[Result "1-0"]
[WhiteElo "2604"]
[BlackElo "2351"]
[TimeControl "180+2"]
[EndTime "11:32:30 PDT"]
[Termination "Bigfish1995 won by resignation"]

1. Nf3 {[%clk 0:03:01.9]} 1... d5 {[%clk 0:02:59]} 2. g3 {[%clk 0:03:03]} 2...
Nf6 {[%clk 0:02:59.2]} 3. Bg2 {[%clk 0:03:04.6]} 3... e6 {[%clk 0:03:00.6]} 4.
O-O {[%clk 0:03:06.2]} 4... c5 {[%clk 0:02:59.7]} 5. c4 {[%clk 0:03:05.5]} 5...
d4 {[%clk 0:02:59.5]} 6. b4 {[%clk 0:03:05.9]} 6... a5 {[%clk 0:02:56.6]} 7.
bxc5 {[%clk 0:03:04.8]} 7... Bxc5 {[%clk 0:02:56.4]} 8. Ba3 {[%clk 0:03:05.6]}
8... Bxa3 {[%clk 0:02:56.3]} 9. Qa4+ {[%clk 0:03:04.6]} 9... Nc6 {[%clk
0:02:53.8]} 10. Qxa3 {[%clk 0:03:05.6]} 10... Qe7 {[%clk 0:02:51.7]} 11. d3
{[%clk 0:03:06.7]} 11... Qxa3 {[%clk 0:02:41.6]} 12. Nxa3 {[%clk 0:03:07.6]}
12... e5 {[%clk 0:02:40]} 13. Rfb1 {[%clk 0:03:01.3]} 13... Nd7 {[%clk
0:02:33.9]} 14. Nb5 {[%clk 0:03:01]} 14... Ke7 {[%clk 0:02:29.9]} 15. Nc7 {[%clk
0:02:56.7]} 15... Ra7 {[%clk 0:02:25]} 16. Nd5+ {[%clk 0:02:53.1]} 16... Ke8
{[%clk 0:02:19.3]} 17. Ng5 {[%clk 0:02:54.7]} 17... h6 {[%clk 0:02:09.4]} 18.
Ne4 {[%clk 0:02:55.4]} 18... Nf6 {[%clk 0:01:42]} 19. Nd6+ {[%clk 0:02:40.4]}
19... Kd7 {[%clk 0:01:41.5]} 20. Nxf7 {[%clk 0:02:38]} 20... Rh7 {[%clk
0:01:34.3]} 21. Nb6+ {[%clk 0:02:35.9]} 21... Kc7 {[%clk 0:01:25.9]} 22. Nxc8
{[%clk 0:02:36.9]} 22... Kxc8 {[%clk 0:01:25.2]} 23. Nd6+ {[%clk 0:02:35.2]}
23... Kc7 {[%clk 0:01:24.3]} 24. Nb5+ {[%clk 0:02:36]} 1-0

[Event "*** Titled Tuesday 3|2 Blitz"]
[Site "Chess.com"]
[Date "2016.06.07"]
[Round "3"]
[White "GianmarcoVaR"]
[Black "NewBornNow"]
[Result "0-1"]
[WhiteElo "2336"]
[BlackElo "2552"]
[TimeControl "180+2"]
[EndTime "11:32:38 PDT"]
[Termination "NewBornNow won by resignation"]

1. d4 {[%clk 0:03:01.9]} 1... Nf6 {[%clk 0:03:00.3]} 2. c4 {[%clk 0:03:02.5]}
2... e6 {[%clk 0:03:00.9]} 3. g3 {[%clk 0:03:04]} 3... c5 {[%clk 0:03:00.7]} 4.
d5 {[%clk 0:03:04.8]} 4... exd5 {[%clk 0:03:01]} 5. cxd5 {[%clk 0:03:06.7]} 5...
d6 {[%clk 0:03:02]} 6. Nc3 {[%clk 0:03:07.7]} 6... g6 {[%clk 0:03:02.8]} 7. Nf3
{[%clk 0:03:09.2]} 7... Bg7 {[%clk 0:03:04.2]} 8. Bg2 {[%clk 0:03:10.9]} 8...
O-O {[%clk 0:03:05.7]} 9. O-O {[%clk 0:03:12.5]} 9... Re8 {[%clk 0:03:06.9]} 10.
Bf4 {[%clk 0:03:11.7]} 10... Ne4 {[%clk 0:03:07.4]} 11. Nxe4 {[%clk 0:03:12]}
11... Rxe4 {[%clk 0:03:08.3]} 12. Nd2 {[%clk 0:03:13.6]} 12... Rxf4 {[%clk
0:03:09.4]} 13. gxf4 {[%clk 0:03:13]} 13... Bxb2 {[%clk 0:03:09.9]} 14. Rb1
{[%clk 0:02:54.6]} 14... Bg7 {[%clk 0:03:10.1]} 15. Nc4 {[%clk 0:02:46.5]} 15...
Na6 {[%clk 0:02:58.6]} 16. e4 {[%clk 0:02:40.5]} 16... Nb4 {[%clk 0:02:59.3]}
17. a3 {[%clk 0:02:25.5]} 17... Na2 {[%clk 0:02:54.2]} 18. Qc2 {[%clk
0:02:13.1]} 18... Nc3 {[%clk 0:02:52]} 19. Rb3 {[%clk 0:02:13.8]} 19... b5
{[%clk 0:02:51.6]} 20. Nd2 {[%clk 0:02:08.7]} 20... Ne2+ {[%clk 0:02:49]} 21.
Kh1 {[%clk 0:02:06.3]} 21... Nd4 {[%clk 0:02:49.7]} 22. Qb1 {[%clk 0:02:03.8]}
22... Nxb3 {[%clk 0:02:49.6]} 23. Qxb3 {[%clk 0:02:04.7]} 23... Rb8 {[%clk
0:02:47]} 24. Rc1 {[%clk 0:02:04.3]} 24... Bh6 {[%clk 0:02:44.6]} 25. Qg3 {[%clk
0:01:44.4]} 25... Qf6 {[%clk 0:02:43.5]} 26. e5 {[%clk 0:01:45.2]} 26... Qxf4
{[%clk 0:02:43.5]} 27. Qxf4 {[%clk 0:01:40.7]} 27... Bxf4 {[%clk 0:02:44]} 28.
Rc2 {[%clk 0:01:42.6]} 28... Bxe5 {[%clk 0:02:44.2]} 29. Nb3 {[%clk 0:01:40.1]}
29... Bf5 {[%clk 0:02:41.7]} 30. Re2 {[%clk 0:01:40.4]} 30... b4 {[%clk
0:02:40]} 31. axb4 {[%clk 0:01:40.5]} 31... Rxb4 {[%clk 0:02:40.3]} 32. Nd2
{[%clk 0:01:38]} 32... Rb2 {[%clk 0:02:39.9]} 33. Bf3 {[%clk 0:01:39.2]} 33...
Bd3 {[%clk 0:02:38.5]} 34. Rxe5 {[%clk 0:01:38.5]} 34... dxe5 {[%clk 0:02:37.5]}
35. Ne4 {[%clk 0:01:39.5]} 35... Bxe4 {[%clk 0:02:36.6]} 36. Bxe4 {[%clk
0:01:41.4]} 36... Rd2 {[%clk 0:02:37.4]} 0-1

[Event "*** Titled Tuesday 3|2 Blitz"]
[Site "Chess.com"]
[Date "2016.06.07"]
[Round "3"]
[White "Keaton87"]
[Black "JSPrepz"]
[Result "0-1"]
[WhiteElo "2470"]
[BlackElo "2400"]
[TimeControl "180+2"]
[EndTime "11:32:42 PDT"]
[Termination "JSPrepz won by resignation"]

1. d4 {[%clk 0:03:01.9]} 1... Nf6 {[%clk 0:03:00.6]} 2. Bg5 {[%clk 0:03:01.4]}
2... e6 {[%clk 0:03:00.6]} 3. e3 {[%clk 0:03:00.5]} 3... d5 {[%clk 0:02:59.9]}
4. Nd2 {[%clk 0:02:56.4]} 4... c5 {[%clk 0:02:59.2]} 5. c3 {[%clk 0:02:57]} 5...
Nc6 {[%clk 0:02:59.6]} 6. Bd3 {[%clk 0:02:57.8]} 6... Be7 {[%clk 0:02:59.8]} 7.
Ngf3 {[%clk 0:02:57]} 7... h6 {[%clk 0:03:00.1]} 8. Bh4 {[%clk 0:02:57.2]} 8...
O-O {[%clk 0:03:00.1]} 9. O-O {[%clk 0:02:53.7]} 9... Bd7 {[%clk 0:02:53]} 10.
Qe2 {[%clk 0:02:51.7]} 10... a6 {[%clk 0:02:53.8]} 11. dxc5 {[%clk 0:02:48.9]}
11... Bxc5 {[%clk 0:02:54.5]} 12. e4 {[%clk 0:02:49.7]} 12... dxe4 {[%clk
0:02:55.5]} 13. Nxe4 {[%clk 0:02:50.3]} 13... Be7 {[%clk 0:02:56.8]} 14. Rad1
{[%clk 0:02:48.8]} 14... Nxe4 {[%clk 0:02:51.3]} 15. Qxe4 {[%clk 0:02:37]} 15...
f5 {[%clk 0:02:51.8]} 16. Bxe7 {[%clk 0:02:35]} 16... Qxe7 {[%clk 0:02:52.8]}
17. Qe2 {[%clk 0:02:25.5]} 17... e5 {[%clk 0:02:52.7]} 18. Rfe1 {[%clk
0:02:07.4]} 18... Rae8 {[%clk 0:02:45.8]} 19. Bc4+ {[%clk 0:02:05.8]} 19... Kh8
{[%clk 0:02:45.1]} 20. Bd5 {[%clk 0:02:07.4]} 20... e4 {[%clk 0:02:39.2]} 21.
Nd4 {[%clk 0:02:07.5]} 21... Ne5 {[%clk 0:02:34.1]} 22. Qh5 {[%clk 0:02:01.9]}
22... Qf6 {[%clk 0:02:23.6]} 23. h3 {[%clk 0:01:49.6]} 23... Nd3 {[%clk
0:02:21.6]} 24. Re3 {[%clk 0:01:48.3]} 24... Nf4 {[%clk 0:02:20.9]} 25. Qxe8
{[%clk 0:01:26.3]} 25... Rxe8 {[%clk 0:02:19.9]} 26. Bxb7 {[%clk 0:01:27.4]}
26... Rb8 {[%clk 0:02:17.2]} 0-1

[Event "*** Titled Tuesday 3|2 Blitz"]
[Site "Chess.com"]
[Date "2016.06.07"]
[Round "3"]
[White "Cruel_Yaro"]
[Black "kikydu96"]
[Result "1-0"]
[WhiteElo "2549"]
[BlackElo "2359"]
[TimeControl "180+2"]
[EndTime "11:33:20 PDT"]
[Termination "Cruel_Yaro won by resignation"]

1. d4 {[%clk 0:02:48.3]} 1... d5 {[%clk 0:02:57.9]} 2. c4 {[%clk 0:02:48.9]}
2... c6 {[%clk 0:02:58.9]} 3. Nf3 {[%clk 0:02:49]} 3... Nf6 {[%clk 0:03:00.2]}
4. Nc3 {[%clk 0:02:50.5]} 4... dxc4 {[%clk 0:03:01.5]} 5. a4 {[%clk 0:02:51.6]}
5... Bf5 {[%clk 0:03:02.1]} 6. e3 {[%clk 0:02:53.1]} 6... e6 {[%clk 0:03:03.3]}
7. Bxc4 {[%clk 0:02:54.7]} 7... Bb4 {[%clk 0:03:04.6]} 8. O-O {[%clk 0:02:56.3]}
8... Nbd7 {[%clk 0:03:06.2]} 9. Qe2 {[%clk 0:02:57.5]} 9... Bg6 {[%clk
0:03:06.2]} 10. e4 {[%clk 0:02:57.6]} 10... O-O {[%clk 0:03:07.3]} 11. Bd3
{[%clk 0:02:57.7]} 11... Bh5 {[%clk 0:03:07.5]} 12. e5 {[%clk 0:02:58.5]} 12...
Nd5 {[%clk 0:03:08.8]} 13. Nxd5 {[%clk 0:02:59.9]} 13... cxd5 {[%clk 0:03:10.7]}
14. Qe3 {[%clk 0:03:01.1]} 14... Re8 {[%clk 0:03:10.7]} 15. Ng5 {[%clk
0:03:01.4]} 15... Bg6 {[%clk 0:02:29.8]} 16. Bxg6 {[%clk 0:03:01.5]} 16... fxg6
{[%clk 0:02:26.7]} 17. a5 {[%clk 0:03:02.6]} 17... Rc8 {[%clk 0:02:20.6]} 18. a6
{[%clk 0:02:56.1]} 18... b5 {[%clk 0:02:16.7]} 19. Bd2 {[%clk 0:02:53.1]} 19...
Qe7 {[%clk 0:01:42.3]} 20. Rac1 {[%clk 0:02:36.4]} 20... Bxd2 {[%clk 0:01:19.3]}
21. Qxd2 {[%clk 0:02:36.5]} 21... h6 {[%clk 0:01:21]} 22. Nh3 {[%clk 0:02:35.7]}
22... Nb6 {[%clk 0:01:19.3]} 23. Nf4 {[%clk 0:02:32.6]} 23... g5 {[%clk
0:01:18.2]} 24. Nd3 {[%clk 0:02:33]} 24... Nc4 {[%clk 0:01:17.9]} 25. Qe2 {[%clk
0:02:33.7]} 25... Rc7 {[%clk 0:01:03.5]} 26. b3 {[%clk 0:02:34.5]} 26... Na5
{[%clk 0:00:56.9]} 27. Rxc7 {[%clk 0:02:34]} 27... Qxc7 {[%clk 0:00:56.9]} 28.
Nc5 {[%clk 0:02:35.5]} 28... Nc6 {[%clk 0:00:55.1]} 29. Qxb5 {[%clk 0:02:33.6]}
29... Rb8 {[%clk 0:00:54]} 30. Qd3 {[%clk 0:02:28.7]} 30... Nxe5 {[%clk
0:00:55.1]} 31. Qe3 {[%clk 0:02:24.5]} 31... Ng4 {[%clk 0:00:41.9]} 32. Qxe6+
{[%clk 0:02:25]} 32... Kh8 {[%clk 0:00:43.2]} 33. Qxg4 {[%clk 0:02:25.6]} 1-0

[Event "*** Titled Tuesday 3|2 Blitz"]
[Site "Chess.com"]
[Date "2016.06.07"]
[Round "3"]
[White "Andrejkin"]
[Black "SmarterChess"]
[Result "0-1"]
[WhiteElo "2159"]
[BlackElo "2160"]
[TimeControl "180+2"]
[EndTime "11:34:12 PDT"]
[Termination "SmarterChess won by resignation"]

1. e4 {[%clk 0:03:01.9]} 1... c6 {[%clk 0:02:59]} 2. d4 {[%clk 0:03:02.4]} 2...
d5 {[%clk 0:02:59.9]} 3. Nc3 {[%clk 0:03:03.9]} 3... a6 {[%clk 0:02:58.6]} 4.
exd5 {[%clk 0:03:04.2]} 4... cxd5 {[%clk 0:02:59.5]} 5. Nf3 {[%clk 0:03:06.1]}
5... Nc6 {[%clk 0:02:58.8]} 6. Be3 {[%clk 0:03:06.1]} 6... Nf6 {[%clk
0:02:58.9]} 7. Bd3 {[%clk 0:03:05.9]} 7... Bg4 {[%clk 0:02:59.1]} 8. h3 {[%clk
0:03:05.4]} 8... Bh5 {[%clk 0:02:59.9]} 9. g4 {[%clk 0:03:05.6]} 9... Bg6 {[%clk
0:03:01]} 10. g5 {[%clk 0:03:00.8]} 10... Ne4 {[%clk 0:02:56.8]} 11. Bxe4 {[%clk
0:03:00.8]} 11... dxe4 {[%clk 0:02:53.7]} 12. Nh4 {[%clk 0:02:54.3]} 12... Qa5
{[%clk 0:02:30.5]} 13. Nxg6 {[%clk 0:02:42.7]} 13... hxg6 {[%clk 0:02:28.8]} 14.
h4 {[%clk 0:02:32.3]} 14... e6 {[%clk 0:02:21.4]} 15. h5 {[%clk 0:02:21.1]}
15... Bb4 {[%clk 0:02:04.6]} 16. Qd2 {[%clk 0:02:06.3]} 16... Ne7 {[%clk
0:01:36.4]} 17. h6 {[%clk 0:02:04.9]} 17... Nd5 {[%clk 0:01:26.8]} 18. O-O
{[%clk 0:01:09.4]} 18... gxh6 {[%clk 0:01:16.5]} 19. a3 {[%clk 0:01:05.6]} 19...
Bxc3 {[%clk 0:01:12]} 20. bxc3 {[%clk 0:01:05]} 20... hxg5 {[%clk 0:01:10.6]}
21. Bxg5 {[%clk 0:01:04.8]} 21... Qxc3 {[%clk 0:00:47.4]} 22. Qe2 {[%clk
0:01:02.8]} 22... Qh3 {[%clk 0:00:39.5]} 0-1

[Event "*** Titled Tuesday 3|2 Blitz"]
[Site "Chess.com"]
[Date "2016.06.07"]
[Round "3"]
[White "ItalianMachine"]
[Black "aspired"]
[Result "0-1"]
[WhiteElo "2317"]
[BlackElo "2518"]
[TimeControl "180+2"]
[EndTime "11:34:15 PDT"]
[Termination "aspired won by resignation"]

1. e4 {[%clk 0:03:01.9]} 1... e5 {[%clk 0:02:57.4]} 2. Nf3 {[%clk 0:03:01.6]}
2... d6 {[%clk 0:02:56.7]} 3. c3 {[%clk 0:02:56.8]} 3... Nf6 {[%clk 0:02:54.8]}
4. Bd3 {[%clk 0:02:56.5]} 4... g6 {[%clk 0:02:46.5]} 5. O-O {[%clk 0:02:57.2]}
5... Bg7 {[%clk 0:02:47.6]} 6. Bc2 {[%clk 0:02:58]} 6... O-O {[%clk 0:02:48]} 7.
d4 {[%clk 0:02:58.7]} 7... Nc6 {[%clk 0:02:40.4]} 8. Nbd2 {[%clk 0:02:53.9]}
8... h6 {[%clk 0:02:37.4]} 9. Nc4 {[%clk 0:02:52.4]} 9... exd4 {[%clk
0:02:34.8]} 10. cxd4 {[%clk 0:02:51.6]} 10... d5 {[%clk 0:02:35.2]} 11. exd5
{[%clk 0:02:51.3]} 11... Nxd5 {[%clk 0:02:35.9]} 12. h3 {[%clk 0:02:50.4]} 12...
Nde7 {[%clk 0:02:29.4]} 13. Ne3 {[%clk 0:02:43.2]} 13... Nxd4 {[%clk 0:02:27.4]}
14. Nxd4 {[%clk 0:02:33.4]} 14... Qxd4 {[%clk 0:02:29.3]} 15. Qxd4 {[%clk
0:02:32.4]} 15... Bxd4 {[%clk 0:02:29.5]} 16. Nc4 {[%clk 0:02:24.6]} 16... h5
{[%clk 0:02:19]} 17. Bf4 {[%clk 0:02:24.8]} 17... Be6 {[%clk 0:02:09.9]} 18. Na5
{[%clk 0:02:21.9]} 18... Nd5 {[%clk 0:02:08.4]} 19. Bg3 {[%clk 0:02:22.7]} 19...
b6 {[%clk 0:02:02.5]} 20. Nc6 {[%clk 0:02:15.3]} 20... Bxb2 {[%clk 0:02:03.3]}
21. Rad1 {[%clk 0:02:14.8]} 21... Nf6 {[%clk 0:01:48.2]} 22. Bxc7 {[%clk
0:02:13.3]} 22... Rac8 {[%clk 0:01:43]} 23. Ne7+ {[%clk 0:02:14.4]} 23... Kg7
{[%clk 0:01:43.8]} 24. Nxc8 {[%clk 0:02:02.4]} 24... Rxc8 {[%clk 0:01:45.7]} 25.
Bf4 {[%clk 0:01:55.9]} 25... Rxc2 {[%clk 0:01:44.1]} 26. Rd2 {[%clk 0:01:57.6]}
26... Rxd2 {[%clk 0:01:42.7]} 27. Bxd2 {[%clk 0:01:59.5]} 27... Bxa2 {[%clk
0:01:42.6]} 28. Re1 {[%clk 0:01:58.1]} 28... Be6 {[%clk 0:01:28.3]} 29. f3
{[%clk 0:01:52.4]} 29... Bd4+ {[%clk 0:01:26.8]} 30. Kh2 {[%clk 0:01:53.8]}
30... a5 {[%clk 0:01:26.6]} 31. f4 {[%clk 0:01:48]} 31... a4 {[%clk 0:01:26.5]}
32. Bb4 {[%clk 0:01:47.2]} 32... Nd5 {[%clk 0:01:22.9]} 33. Bd6 {[%clk
0:01:48.2]} 33... b5 {[%clk 0:01:21.1]} 34. Rb1 {[%clk 0:01:47.1]} 34... Nc3
{[%clk 0:01:18.9]} 35. Rb4 {[%clk 0:01:48.1]} 35... Bf6 {[%clk 0:01:16.2]} 36.
Kg3 {[%clk 0:01:45.8]} 36... Bc4 {[%clk 0:01:15.9]} 37. Kf3 {[%clk 0:01:44.8]}
37... Nd5 {[%clk 0:01:10.6]} 38. Rb1 {[%clk 0:01:43.1]} 38... Nc3 {[%clk
0:01:11.3]} 39. Rb4 {[%clk 0:01:42.9]} 39... a3 {[%clk 0:01:11.4]} 0-1

[Event "*** Titled Tuesday 3|2 Blitz"]
[Site "Chess.com"]
[Date "2016.06.07"]
[Round "3"]
[White "northridgehawk"]
[Black "Grootneus"]
[Result "0-1"]
[WhiteElo "1906"]
[BlackElo "2065"]
[TimeControl "180+2"]
[EndTime "11:34:23 PDT"]
[Termination "Grootneus won by resignation"]

1. e4 {[%clk 0:03:01.9]} 1... c5 {[%clk 0:03:00.7]} 2. Nf3 {[%clk 0:03:01]} 2...
Nc6 {[%clk 0:03:00.4]} 3. d4 {[%clk 0:03:02.3]} 3... cxd4 {[%clk 0:03:02.3]} 4.
c3 {[%clk 0:03:03.6]} 4... Nf6 {[%clk 0:03:02.8]} 5. e5 {[%clk 0:03:03.8]} 5...
Nd5 {[%clk 0:03:03.9]} 6. Bc4 {[%clk 0:03:05.4]} 6... e6 {[%clk 0:03:03.9]} 7.
O-O {[%clk 0:03:04.4]} 7... Be7 {[%clk 0:02:59.7]} 8. cxd4 {[%clk 0:03:01.7]}
8... d6 {[%clk 0:03:00.4]} 9. Qe2 {[%clk 0:02:59.2]} 9... O-O {[%clk 0:03:00.1]}
10. Rd1 {[%clk 0:02:59.5]} 10... Qb6 {[%clk 0:02:44.8]} 11. Nc3 {[%clk
0:02:58.4]} 11... Nxc3 {[%clk 0:02:35.8]} 12. bxc3 {[%clk 0:02:58.9]} 12... dxe5
{[%clk 0:02:36.8]} 13. dxe5 {[%clk 0:02:56.2]} 13... Qa5 {[%clk 0:02:28.6]} 14.
Bf4 {[%clk 0:02:49]} 14... b6 {[%clk 0:02:23.3]} 15. Bd3 {[%clk 0:02:42.1]}
15... Bb7 {[%clk 0:02:20.2]} 16. Be4 {[%clk 0:02:38.8]} 16... Rad8 {[%clk
0:02:15.5]} 17. Qc4 {[%clk 0:02:34.1]} 17... Qc5 {[%clk 0:02:12.8]} 18. Qe2
{[%clk 0:02:33]} 18... Na5 {[%clk 0:02:07]} 19. Ng5 {[%clk 0:02:29]} 19... Bxe4
{[%clk 0:01:43.2]} 20. Nxe4 {[%clk 0:02:26.5]} 20... Qc4 {[%clk 0:01:37.2]} 21.
Qf3 {[%clk 0:02:25.6]} 21... Nc6 {[%clk 0:01:26]} 22. Nd6 {[%clk 0:02:19.9]}
22... Bxd6 {[%clk 0:01:22.2]} 23. exd6 {[%clk 0:02:20.2]} 23... e5 {[%clk
0:01:20.5]} 24. Bg3 {[%clk 0:02:17.8]} 24... f6 {[%clk 0:01:05.7]} 25. a4 {[%clk
0:02:14.2]} 25... Na5 {[%clk 0:01:05.3]} 26. Rab1 {[%clk 0:02:13.2]} 26... Qc6
{[%clk 0:01:00.9]} 27. Qd3 {[%clk 0:02:12.2]} 27... Nc4 {[%clk 0:00:57.6]} 28.
d7 {[%clk 0:02:05.8]} 28... Rf7 {[%clk 0:00:54.5]} 29. Qf5 {[%clk 0:01:55.4]}
29... Rfxd7 {[%clk 0:00:52.7]} 30. Re1 {[%clk 0:01:55.9]} 30... Rd2 {[%clk
0:00:39]} 31. h4 {[%clk 0:01:56.3]} 31... Nd6 {[%clk 0:00:35.3]} 32. Qe6+ {[%clk
0:01:55]} 32... Kh8 {[%clk 0:00:35.8]} 33. h5 {[%clk 0:01:55.9]} 33... Qd7
{[%clk 0:00:32.6]} 34. Qg4 {[%clk 0:01:53.9]} 34... Qxg4 {[%clk 0:00:32.9]} 0-1

[Event "*** Titled Tuesday 3|2 Blitz"]
[Site "Chess.com"]
[Date "2016.06.07"]
[Round "3"]
[White "VSERGUEI"]
[Black "Rikikits"]
[Result "0-1"]
[WhiteElo "2485"]
[BlackElo "2428"]
[TimeControl "180+2"]
[EndTime "11:34:45 PDT"]
[Termination "Rikikits won on time"]

1. d4 {[%clk 0:03:01.9]} 1... Nf6 {[%clk 0:03:00.8]} 2. c4 {[%clk 0:03:02.9]}
2... g6 {[%clk 0:03:02.3]} 3. Nc3 {[%clk 0:03:03.4]} 3... Bg7 {[%clk 0:03:04]}
4. e4 {[%clk 0:03:03.5]} 4... O-O {[%clk 0:03:05.9]} 5. Be2 {[%clk 0:03:04.4]}
5... d6 {[%clk 0:03:06.9]} 6. Nf3 {[%clk 0:03:05.5]} 6... e5 {[%clk 0:03:07.8]}
7. Be3 {[%clk 0:03:06.6]} 7... exd4 {[%clk 0:03:09.7]} 8. Nxd4 {[%clk 0:03:07]}
8... Re8 {[%clk 0:03:11.6]} 9. f3 {[%clk 0:03:08.2]} 9... Nc6 {[%clk 0:03:13.5]}
10. O-O {[%clk 0:03:08.2]} 10... Nh5 {[%clk 0:03:14.8]} 11. Qd2 {[%clk
0:03:09.1]} 11... f5 {[%clk 0:03:15.9]} 12. Nxc6 {[%clk 0:03:02.4]} 12... bxc6
{[%clk 0:03:17.8]} 13. exf5 {[%clk 0:03:02.7]} 13... Qh4 {[%clk 0:03:19]} 14.
Bf2 {[%clk 0:02:37.1]} 14... Qf4 {[%clk 0:03:17.3]} 15. Rad1 {[%clk 0:02:29.6]}
15... Qxd2 {[%clk 0:03:17.7]} 16. Rxd2 {[%clk 0:02:30.3]} 16... Nf4 {[%clk
0:03:19.6]} 17. f6 {[%clk 0:02:14]} 17... Bxf6 {[%clk 0:02:53.5]} 18. Ne4 {[%clk
0:02:13.2]} 18... Bg7 {[%clk 0:02:54.1]} 19. Bg3 {[%clk 0:02:09.3]} 19... Nxe2+
{[%clk 0:02:48.9]} 20. Rxe2 {[%clk 0:02:09.4]} 20... Ba6 {[%clk 0:02:50.8]} 21.
b3 {[%clk 0:02:06.9]} 21... d5 {[%clk 0:02:50.7]} 22. Bxc7 {[%clk 0:01:56.8]}
22... dxe4 {[%clk 0:02:48.4]} 23. fxe4 {[%clk 0:01:57.2]} 23... Bd4+ {[%clk
0:02:47.1]} 24. Kh1 {[%clk 0:01:56.3]} 24... Re7 {[%clk 0:02:37]} 25. Bd6 {[%clk
0:01:51.1]} 25... Re6 {[%clk 0:02:37.9]} 26. e5 {[%clk 0:01:41.8]} 26... Rae8
{[%clk 0:02:38]} 27. Rfe1 {[%clk 0:01:28.1]} 27... c5 {[%clk 0:02:32.2]} 28. h3
{[%clk 0:01:25.8]} 28... g5 {[%clk 0:02:32]} 29. Kh2 {[%clk 0:01:25.4]} 29...
Kg7 {[%clk 0:02:33.5]} 30. Rd1 {[%clk 0:01:17.4]} 30... Bb7 {[%clk 0:01:53.4]}
31. b4 {[%clk 0:01:11.8]} 31... Rxd6 {[%clk 0:01:50.9]} 32. exd6 {[%clk
0:01:00.7]} 32... Rxe2 {[%clk 0:01:52.8]} 33. d7 {[%clk 0:01:01.2]} 33... Rxg2+
{[%clk 0:01:53.2]} 0-1

[Event "*** Titled Tuesday 3|2 Blitz"]
[Site "Chess.com"]
[Date "2016.06.07"]
[Round "3"]
[White "VMikhalevski"]
[Black "Semetey"]
[Result "0-1"]
[WhiteElo "2419"]
[BlackElo "2455"]
[TimeControl "180+2"]
[EndTime "11:34:52 PDT"]
[Termination "Semetey won by resignation"]

1. Nf3 {[%clk 0:03:01.9]} 1... d5 {[%clk 0:02:58.1]} 2. g3 {[%clk 0:03:02.7]}
2... Nf6 {[%clk 0:02:58.7]} 3. Bg2 {[%clk 0:03:04]} 3... c6 {[%clk 0:03:00.3]}
4. O-O {[%clk 0:03:04.7]} 4... Bg4 {[%clk 0:03:01.9]} 5. d3 {[%clk 0:03:05.2]}
5... Nbd7 {[%clk 0:03:03.2]} 6. h3 {[%clk 0:03:06.3]} 6... Bh5 {[%clk
0:03:04.1]} 7. c4 {[%clk 0:03:07.4]} 7... e6 {[%clk 0:03:04.8]} 8. cxd5 {[%clk
0:03:08.9]} 8... cxd5 {[%clk 0:03:03.4]} 9. Nc3 {[%clk 0:03:06.3]} 9... Be7
{[%clk 0:03:04.5]} 10. e4 {[%clk 0:03:01.1]} 10... O-O {[%clk 0:02:58.6]} 11.
exd5 {[%clk 0:03:00.7]} 11... Nxd5 {[%clk 0:02:58.1]} 12. Nxd5 {[%clk
0:03:00.7]} 12... exd5 {[%clk 0:02:59.5]} 13. Be3 {[%clk 0:02:54.8]} 13... Nc5
{[%clk 0:02:39.8]} 14. Rc1 {[%clk 0:02:51.4]} 14... Rc8 {[%clk 0:02:40.7]} 15.
Qd2 {[%clk 0:02:46]} 15... Bxf3 {[%clk 0:01:57.6]} 16. Bxf3 {[%clk 0:02:15.4]}
16... d4 {[%clk 0:01:35.4]} 17. Bf4 {[%clk 0:02:15.9]} 17... g5 {[%clk
0:01:36.6]} 18. Be5 {[%clk 0:02:16.4]} 18... f6 {[%clk 0:01:35.9]} 19. b4 {[%clk
0:02:17.1]} 19... fxe5 {[%clk 0:01:36.8]} 20. bxc5 {[%clk 0:02:16.9]} 20... Rxf3
{[%clk 0:01:37.4]} 21. Qe2 {[%clk 0:02:14.5]} 21... Qd5 {[%clk 0:01:35.7]} 22.
Rfe1 {[%clk 0:02:12.4]} 22... Rxc5 {[%clk 0:01:19.5]} 23. Rxc5 {[%clk
0:02:01.7]} 23... Bxc5 {[%clk 0:01:20.4]} 24. Qxe5 {[%clk 0:02:02.1]} 24... Qxe5
{[%clk 0:01:20.6]} 25. Rxe5 {[%clk 0:02:03]} 25... b6 {[%clk 0:01:13.4]} 26.
Rxg5+ {[%clk 0:02:03.8]} 26... Kf7 {[%clk 0:01:14.8]} 27. Rd5 {[%clk 0:02:02.9]}
27... a5 {[%clk 0:01:13]} 28. Rd7+ {[%clk 0:02:00.1]} 28... Kg6 {[%clk
0:01:13.6]} 29. Kg2 {[%clk 0:01:55.8]} 29... Rxd3 {[%clk 0:01:14.7]} 30. Rd5
{[%clk 0:01:54.7]} 30... Ra3 {[%clk 0:01:14]} 31. g4 {[%clk 0:01:54.8]} 31...
Rxa2 {[%clk 0:01:14]} 32. h4 {[%clk 0:01:55.8]} 32... h6 {[%clk 0:01:10.1]} 33.
h5+ {[%clk 0:01:54.3]} 33... Kf6 {[%clk 0:01:11.1]} 34. Rf5+ {[%clk 0:01:52.5]}
34... Kg7 {[%clk 0:01:12]} 35. Rd5 {[%clk 0:01:45.5]} 35... d3 {[%clk
0:01:12.8]} 36. Rxd3 {[%clk 0:01:43.5]} 36... Rxf2+ {[%clk 0:01:13.7]} 37. Kg3
{[%clk 0:01:45.1]} 37... Rf7 {[%clk 0:01:14.6]} 38. Rd8 {[%clk 0:01:43.1]} 38...
Ra7 {[%clk 0:01:14.3]} 39. g5 {[%clk 0:01:43.5]} 39... hxg5 {[%clk 0:01:15.1]}
40. Kg4 {[%clk 0:01:44.3]} 40... a4 {[%clk 0:01:16.6]} 41. Kf5 {[%clk
0:01:25.2]} 41... a3 {[%clk 0:01:16.6]} 42. Rd2 {[%clk 0:01:21.9]} 42... a2
{[%clk 0:01:17.1]} 43. h6+ {[%clk 0:01:23.6]} 43... Kh7 {[%clk 0:01:17.1]} 44.
Kf6 {[%clk 0:01:25.2]} 44... a1=Q+ {[%clk 0:01:16.8]} 0-1